bitfinex/quotes_ETHUSD_20251023
["timestamp","ask_amount","ask_price","bid_price","bid_amount"]
[1761229843564,0.1007,3831.9,3831.0,2.61028004]
[1761229843744,1.5552,3831.7,3830.6,0.4512]
[1761229843942,1.5552,3831.7,3831.3,2.61005589]
[1761229844118,3.446,3831.6,3831.3,2.61005589]
[1761229844313,0.1304,3831.4,3831.3,2.61005589]
[1761229845243,0.1304,3831.4,3831.1,0.2329]
[1761229845439,0.1304,3831.4,3831.0,2.84317526]
[1761229845934,0.1304,3831.4,3831.2,2.6101374]
[1761229846124,0.1304,3831.4,3831.1,2.61020415]
[1761229846529,0.1304,3831.4,3830.8,2.74082047]
[1761229846530,0.1304,3831.4,3831.2,2.6101283]
[1761229846730,0.1304,3831.4,3831.3,3.34986012]
[1761229847042,0.309,3831.8,3831.5,2.60989246]
[1761229847240,0.1314,3832.0,3831.7,2.60980765]
[1761229847541,0.1314,3832.0,3831.9,2.60967144]
[1761229847933,0.1314,3832.0,3831.8,2.60973166]
[1761229848541,0.1314,3832.0,3831.9,3.11655144]
[1761229848542,0.001,3832.0,3831.9,3.11655144]
[1761229848850,0.001,3832.0,3831.3,0.2329]
[1761229849026,0.1666,3831.9,3831.8,2.60973954]
[1761229849227,2.318,3832.0,3831.9,2.60967144]
[1761229849906,0.001,3832.0,3831.9,3.11655144]
[1761229850177,0.001,3832.0,3831.9,2.60967144]
[1761229850465,0.001,3832.0,3831.9,3.56775144]
[1761229850619,0.001,3832.0,3831.9,3.11655144]
[1761229851059,0.001,3832.0,3831.9,2.60967144]
[1761229851640,0.001,3832.0,3831.9,3.56775144]
[1761229852621,0.001,3832.0,3831.3,0.6841]
[1761229852851,0.001,3832.0,3831.9,2.60967144]
[1761229853470,0.001,3832.0,3831.9,3.56775144]
[1761229856441,0.001,3832.0,3831.9,3.11655144]
[1761229856845,0.001,3832.0,3831.9,2.60967144]
[1761229857758,0.001,3832.0,3831.7,2.60978554]
[1761229857937,0.001,3832.0,3831.9,2.60967144]
[1761229858757,0.001,3832.0,3831.7,2.60980374]
[1761229858921,0.1663,3832.0,3831.6,2.60985632]
[1761229859120,0.1304,3831.9,3831.6,2.60985632]
[1761229859355,0.1304,3831.9,3831.3,0.1304]
[1761229859556,0.1304,3831.9,3831.1,0.2235]
[1761229859557,0.1304,3831.5,3831.1,2.61021214]
[1761229859754,0.1304,3831.3,3830.8,0.1304]
[1761229859959,0.1304,3831.3,3831.1,2.61017231]
[1761229860131,0.1304,3831.3,3831.2,2.61014825]
[1761229860333,0.1304,3831.3,3830.8,0.50688]
[1761229860657,0.1304,3831.3,3831.2,2.61014825]
[1761229861177,0.001,3832.0,3831.5,0.50688]
[1761229861359,0.1304,3831.9,3831.3,0.50688]
[1761229861525,0.1304,3831.9,3831.8,2.60973954]
[1761229861927,0.001,3832.0,3831.9,3.11655144]
[1761229862356,0.001,3832.0,3831.9,2.60967144]
[1761229862540,0.001,3832.0,3831.9,3.11655144]
[1761229863061,0.001,3832.0,3831.5,0.50688]
[1761229863362,0.2657,3831.9,3831.2,0.50688]
[1761229863546,0.2649,3831.9,3830.8,0.4371]
[1761229863746,0.0997,3831.8,3831.1,2.61017008]
[1761229864151,0.0997,3831.8,3831.0,2.61022915]
[1761229864334,0.0997,3831.8,3830.9,0.50688]
[1761229864665,0.0997,3831.8,3830.9,3.1172162]
[1761229864841,0.1652,3831.9,3831.1,0.002]
[1761229865248,0.2649,3831.9,3831.1,2.61215932]
[1761229865653,0.1652,3831.9,3831.1,0.002]
[1761229865960,0.0997,3831.8,3831.1,0.002]
[1761229867043,2.70944699,3831.8,3831.1,0.002]
[1761229867243,0.55555169,3831.7,3831.1,0.002]
[1761229867452,1.957,3831.6,3831.1,0.002]
[1761229867777,1.5552,3831.4,3831.1,0.002]
[1761229868382,0.001,3832.0,3831.2,0.6606]
[1761229868551,0.001,3832.0,3831.2,3.27068352]
[1761229868749,0.001,3832.0,3831.5,2.60993922]
[1761229868949,0.001,3832.0,3831.3,0.50688]
[1761229869264,0.001,3832.0,3831.7,2.60974646]
[1761229869457,0.001,3832.0,3831.4,0.4371]
[1761229869648,0.001,3832.0,3831.7,2.60976021]
[1761229869851,0.001,3832.0,3831.8,2.60970698]
[1761229870092,0.001,3832.0,3831.9,2.60967144]
[1761229870392,0.001,3832.0,3831.9,3.11655144]
[1761229870587,0.001,3832.0,3831.9,3.55365144]
[1761229870758,0.001,3832.0,3831.9,2.60967144]
[1761229871080,0.1013,3832.0,3831.0,2.83374137]
[1761229871280,0.1013,3832.0,3831.3,2.61008012]
[1761229871281,0.1631,3831.9,3831.3,2.61008012]
[1761229871575,0.4751,3831.9,3831.1,2.61220769]
[1761229871781,0.001,3832.0,3831.6,2.60983904]
[1761229871983,0.001,3832.0,3831.5,2.60993871]
[1761229871984,0.1304,3831.8,3831.5,2.60993871]
[1761229872162,0.1304,3831.6,3831.5,2.60993871]
[1761229872366,0.001,3832.0,3831.9,2.60967144]
[1761229872592,0.1314,3832.0,3831.5,0.1304]
[1761229872818,0.1645,3831.9,3831.5,0.1304]
[1761229873037,0.1645,3831.9,3831.2,0.2235]
[1761229873038,0.2641,3831.9,3831.1,0.002]
[1761229873197,0.1304,3831.2,3831.1,0.002]
[1761229873393,0.929,3831.2,3831.1,0.002]
[1761229875223,1.0286,3831.2,3831.1,0.002]
[1761229875427,0.929,3831.2,3831.1,0.002]
[1761229876392,1.0286,3831.2,3831.1,0.002]
[1761229876594,0.929,3831.2,3831.1,0.002]
[1761229876805,3.316,3831.3,3831.1,0.002]
[1761229877114,3.316,3831.3,3831.1,2.612201]
[1761229877819,3.439,3831.7,3831.1,0.002]
[1761229877991,3.439,3831.7,3831.1,0.6626]
[1761229878191,0.001,3832.0,3831.3,0.50688]
[1761229878391,0.001,3832.0,3831.9,2.60967144]
[1761229878592,0.001,3832.0,3831.1,2.8356576]
[1761229878593,0.001,3832.0,3831.7,2.609761]
[1761229878923,0.1652,3831.9,3831.6,2.60982095]
[1761229879283,0.1652,3831.9,3831.4,2.6099885]
[1761229879482,0.2641,3831.9,3831.4,2.6099885]
[1761229879790,0.1652,3831.9,3831.4,2.6099885]
[1761229880031,0.2641,3831.9,3831.1,0.002]
[1761229880239,0.0989,3831.8,3831.1,0.002]
[1761229880914,0.0989,3831.8,3831.2,2.61010146]
[1761229881125,0.1652,3831.9,3831.1,0.002]
[1761229881325,0.001,3832.0,3831.1,0.002]
[1761229881326,3.439,3831.8,3831.1,0.6626]
[1761229881655,1.5552,3831.7,3831.6,2.60987576]
[1761229881943,3.439,3831.8,3831.1,0.2255]
[1761229882124,3.439,3831.8,3831.2,0.50688]
[1761229882313,3.439,3831.8,3831.1,0.002]
[1761229882508,3.439,3831.8,3831.2,2.6101014]
[1761229882713,1.5552,3831.7,3831.1,2.61218203]
[1761229883064,1.5552,3831.7,3831.1,2.6122046]
[1761229883204,1.5552,3831.7,3831.3,2.61006345]
[1761229883409,0.1304,3831.4,3831.3,2.61006345]
[1761229883631,2.259,3831.6,3831.4,2.60997059]
[1761229883841,0.1649,3831.9,3831.6,2.60981893]
[1761229883842,0.001,3831.9,3831.6,2.60981893]
[1761229884132,1.6856,3831.7,3831.6,2.60981893]
[1761229884538,0.001,3831.9,3831.6,2.60981893]
[1761229884746,0.001,3831.9,3831.8,3.11661954]
[1761229885262,0.001,3831.9,3831.8,2.60973954]
[1761229885551,0.001,3831.9,3831.8,3.55371954]
[1761229888163,0.0002,3831.9,3831.8,3.55371954]
[1761229891523,0.1022,3834.5,3832.6,3.1160748]
[1761229891833,0.1598,3834.0,3832.6,3.5908748]
[1761229893038,0.1032,3833.9,3832.6,3.5908748]
[1761229893838,0.001,3833.9,3832.6,3.5908748]
[1761229894730,0.001,3833.9,3832.6,3.7212748]
[1761229894936,0.1314,3833.9,3832.6,7.1582748]
[1761229895354,0.1304,3833.7,3832.6,7.1582748]
[1761229895869,0.1304,3833.7,3832.6,3.7212748]
[1761229897597,0.1032,3833.6,3832.6,3.7212748]
[1761229898783,0.1304,3833.7,3832.6,3.7212748]
[1761229900069,0.001,3833.1,3832.6,3.7212748]
[1761229900280,0.001,3833.1,3832.6,3.2464748]
[1761229900487,0.1668,3832.9,3832.6,2.6091948]
[1761229900660,0.1668,3832.9,3832.6,3.1160748]
[1761229901687,0.1668,3832.9,3832.4,0.002]
[1761229901865,0.1048,3832.7,3832.5,2.60926039]
[1761229902193,0.1048,3832.7,3832.4,2.61130622]
[1761229902359,0.1048,3832.7,3832.4,0.002]
[1761229905751,1.5552,3832.5,3832.4,0.002]
[1761229906290,1.659,3832.5,3832.4,0.002]
[1761229907056,1.5552,3832.5,3832.4,0.002]
[1761229907293,1.659,3832.5,3832.4,0.002]
[1761229908904,0.1038,3832.5,3832.4,0.002]
[1761229909075,3.5388,3832.5,3832.4,0.002]
[1761229911678,3.6692,3832.5,3832.4,0.002]
[1761229911879,5.2244,3832.5,3832.4,0.002]
[1761229912580,5.2236,3832.5,3832.4,0.002]
[1761229912977,21.14323911,3832.5,3832.4,0.0002]
[1761229913308,2.61042079,3830.8,3828.8,0.2361]
[1761229913510,4.1658934,3830.4,3828.8,0.2361]
[1761229913680,4.72356125,3830.4,3828.8,0.2361]
[1761229913875,2.11286785,3830.4,3828.8,0.2361]
[1761229914105,2.11286785,3830.4,3828.9,0.4748]
[1761229914306,5.54686785,3830.4,3829.0,2.61161787]
[1761229914512,5.77584712,3830.4,3829.0,2.61161787]
[1761229914809,8.38654052,3830.4,3828.3,2.61212176]
[1761229914975,8.89342052,3830.4,3828.3,2.61211605]
[1761229915378,8.89342052,3830.4,3828.3,3.08691605]
[1761229915577,8.89342052,3830.4,3828.4,2.61205033]
[1761229915781,6.28272712,3830.4,3828.6,0.4748]
[1761229916100,3.434,3830.4,3829.6,0.4748]
[1761229916411,3.434,3830.4,3828.8,0.50688]
[1761229916412,3.5302,3830.4,3828.9,0.2361]
[1761229916809,5.0854,3830.4,3829.0,0.4748]
[1761229917187,5.0854,3830.4,3829.9,0.002]
[1761229918410,7.6960934,3830.4,3829.9,0.002]
[1761229919119,5.0854,3830.4,3829.9,0.002]
[1761229919296,0.0962,3830.4,3829.9,0.002]
[1761229919498,3.5302,3830.4,3829.9,0.002]
[1761229920237,2.77247855,3831.2,3829.9,0.002]
[1761229920238,0.1623,3831.2,3829.9,0.002]
[1761229920532,0.0962,3830.9,3829.9,0.002]
[1761229921118,4.16564877,3830.8,3829.9,0.002]
[1761229921339,16.41172178,3830.4,3829.9,0.002]
[1761229921488,17.23602838,3830.4,3829.9,0.002]
[1761229921693,19.94292178,3830.4,3829.9,0.002]
[1761229922126,17.33222838,3830.4,3829.9,0.002]
[1761229922326,5.0864,3830.4,3829.9,0.002]
[1761229922550,1.5552,3830.4,3829.9,0.002]
[1761229922838,4.9902,3830.4,3829.9,0.002]
[1761229922989,5.0864,3830.4,3829.9,0.002]
[1761229923192,7.8274934,3830.4,3829.9,0.002]
[1761229923392,5.2168,3830.4,3829.9,0.002]
[1761229924094,7.8274934,3830.4,3829.9,0.002]
[1761229925237,5.0864,3830.4,3829.9,0.002]
[1761229925634,7.6970934,3830.4,3829.9,0.002]
[1761229925932,5.0864,3830.4,3829.9,0.002]
[1761229926121,5.4892,3830.4,3829.9,0.002]
[1761229926330,1.958,3831.0,3829.9,0.002]
[1761229926538,1.958,3831.0,3830.2,0.2313]
[1761229926737,1.958,3831.0,3830.4,0.4487]
[1761229927031,1.958,3831.0,3830.9,2.61035265]
[1761229927219,0.2578,3832.7,3830.5,0.50688]
[1761229927419,1.5552,3832.3,3830.5,0.4487]
[1761229927730,3.5322,3832.4,3830.5,0.4487]
[1761229928143,3.5322,3832.4,3831.1,2.61014844]
[1761229928432,0.0982,3832.3,3830.8,2.6103881]
[1761229928620,2.60948334,3832.2,3830.6,2.61050794]
[1761229928819,1.6534,3832.3,3830.7,0.4487]
[1761229929139,1.6534,3832.3,3831.1,2.61020599]
[1761229929308,3.434,3832.2,3830.9,0.02610352]
[1761229929636,3.434,3832.2,3831.3,2.61006777]
[1761229929935,3.434,3832.1,3831.3,2.61006777]
[1761229930347,0.001,3832.5,3831.4,0.02610012]
[1761229930542,0.001,3832.5,3831.5,0.50688]
[1761229930832,0.542,3832.4,3832.1,2.60947738]
[1761229931034,0.001,3832.5,3832.4,2.60933096]
[1761229931203,0.001,3832.5,3832.4,3.14230426]
[1761229931403,0.001,3832.5,3832.4,3.59100426]
[1761229931638,0.001,3832.5,3832.4,3.56491096]
[1761229932666,0.001,3832.5,3832.4,3.59100426]
[1761229932872,0.001,3832.5,3832.4,3.56491096]
[1761229933855,0.001,3832.5,3832.4,3.05803096]
[1761229934228,0.001,3832.5,3832.4,3.56491096]
[1761229935257,0.001,3832.5,3832.4,3.69531096]
[1761229936063,0.001,3832.5,3832.4,3.18843096]
[1761229936265,0.001,3832.5,3832.4,3.05803096]
[1761229936667,0.001,3832.5,3832.4,3.59100426]
[1761229937037,0.0002,3832.5,3832.4,3.56491096]
[1761229938661,0.001,3833.3,3832.4,3.56491096]
[1761229938662,0.001,3833.3,3833.2,4.67086639]
[1761229938971,0.001,3833.3,3833.2,5.11956639]
[1761229941170,0.001,3833.3,3833.2,3.05748639]
[1761229941538,0.001,3833.3,3833.2,3.56436639]
[1761229943896,0.001,3834.3,3833.4,4.67073028]
[1761229944086,0.001,3834.3,3833.8,4.67045811]
[1761229944382,0.001,3834.3,3833.8,5.11915811]
[1761229945253,0.001,3834.3,3833.8,2.60837811]
[1761229946241,0.001,3834.3,3833.8,3.04907811]
[1761229946664,0.001,3834.3,3833.8,3.55595811]
[1761229948807,0.1314,3834.3,3833.8,2.60837811]
[1761229949013,0.1314,3834.3,3833.8,3.55505811]
[1761229949185,0.001,3834.3,3833.8,3.68545811]
[1761229950021,0.001,3834.3,3833.8,3.17857811]
[1761229950385,0.001,3834.3,3833.8,3.68545811]
[1761229951521,0.001,3834.3,3834.2,3.11498599]
[1761229951907,0.001,3834.3,3834.2,3.68518599]
[1761229952302,0.001,3834.3,3834.2,2.73850599]
[1761229952502,0.001,3834.3,3834.2,2.60810599]
[1761229952906,0.001,3834.3,3833.6,1.5552]
[1761229953201,0.001,3834.3,3834.2,2.60810599]
[1761229953439,0.1304,3834.1,3833.6,0.1304]
[1761229953724,0.1304,3834.1,3833.9,2.60825835]
[1761229953919,0.1304,3834.0,3833.3,2.60871833]
[1761229954217,0.001,3834.3,3834.0,2.60822753]
[1761229954417,0.1304,3834.1,3834.0,2.60822753]
[1761229954819,0.001,3834.3,3834.2,2.60810599]
[1761229955027,0.001,3834.3,3834.2,3.55478599]
[1761229955441,0.001,3834.3,3834.2,3.11498599]
[1761229956135,0.001,3834.3,3834.2,5.10998599]
[1761229956497,0.001,3834.3,3834.2,3.24538599]
[1761229956947,0.001,3834.3,3834.2,3.68518599]
[1761229957937,0.001,3834.3,3834.2,3.24538599]
[1761229958242,0.001,3834.3,3834.2,2.60810599]
[1761229958406,0.1314,3834.3,3834.2,2.60810599]
[1761229960236,0.1314,3834.3,3833.6,1.6856]
[1761229960400,0.1304,3834.1,3833.4,1.5552]
[1761229960600,0.001,3834.3,3834.1,2.60810788]
[1761229960844,0.1304,3833.8,3833.7,2.60844614]
[1761229961013,0.1004,3834.3,3833.2,2.60878639]
[1761229961215,0.1004,3834.3,3834.2,2.60810599]
[1761229961216,0.001,3834.3,3834.2,2.60810599]
[1761229961532,0.0002,3834.3,3834.2,2.60810599]
[1761229963354,0.1007,3834.3,3834.0,2.60819802]
[1761229963508,0.1007,3834.3,3834.1,2.60813063]
[1761229963853,0.0002,3834.3,3834.2,2.60810599]
[1761229964055,0.0002,3834.3,3833.2,2.60878639]
[1761229964056,0.0002,3834.3,3833.2,0.50688]
[1761229964223,0.0002,3834.3,3834.2,2.60810599]
[1761229965652,0.0002,3834.3,3834.2,3.04790599]
[1761229966726,0.0002,3834.3,3834.2,2.60810599]
[1761229966932,0.0002,3834.3,3832.7,2.61110414]
[1761229967130,0.0002,3834.3,3834.0,2.60819737]
[1761229967436,0.0002,3834.3,3834.2,2.60810599]
[1761229968849,0.0002,3834.3,3833.9,0.002]
[1761229969010,0.0002,3834.3,3834.2,2.60810599]
[1761229969520,0.0002,3834.3,3834.2,3.04790599]
[1761229969745,0.0002,3834.3,3834.2,2.60810599]
[1761229970720,0.0002,3834.3,3834.2,3.04790599]
[1761229971159,0.0002,3834.3,3834.2,2.60810599]
[1761229972445,0.0002,3834.3,3834.2,3.04790599]
[1761229973162,0.0002,3834.3,3834.2,2.60810599]
[1761229973448,0.0002,3834.3,3833.9,0.002]
[1761229973449,0.1306,3834.3,3833.9,0.002]
[1761229973649,0.1304,3834.2,3834.1,2.60817401]
[1761229974347,0.0002,3834.3,3834.2,2.60810599]
[1761229974916,0.0002,3834.3,3834.2,3.04790599]
[1761229976331,0.0002,3834.3,3834.2,3.55478599]
[1761229978071,0.0002,3834.3,3834.2,5.10998599]
[1761229979934,0.0002,3834.3,3834.2,5.14278599]
[1761229981547,0.0002,3834.3,3834.2,2.60810599]
[1761229982258,0.0002,3834.3,3834.2,3.58758599]
[1761229984174,0.0002,3834.3,3834.2,3.11498599]
[1761229984378,0.0002,3834.3,3834.2,3.24538599]
[1761229984579,0.0002,3834.3,3834.2,2.60810599]
[1761229984797,0.0002,3834.3,3834.2,3.08070599]
[1761229984947,0.0002,3834.3,3834.2,3.71798599]
[1761229985147,0.0002,3834.3,3834.2,3.74406704]
[1761229985381,0.001,3834.7,3834.6,3.11471393]
[1761229985596,0.001,3834.7,3834.6,8.22531393]
[1761229985916,0.001,3834.7,3834.6,8.69791393]
[1761229986124,0.001,3835.1,3835.0,3.11444192]
[1761229986293,1e-08,3835.8,3835.7,3.11396605]
[1761229986503,1e-08,3835.8,3835.7,3.24436605]
[1761229986704,1e-08,3835.8,3835.7,3.71696605]
[1761229991140,0.3,3837.1,3835.7,3.71696605]
[1761229991315,0.2832,3837.0,3836.9,2.60627068]
[1761229991634,0.2332,3837.1,3837.0,2.60620276]
[1761229991851,0.3636,3837.1,3837.0,2.60620276]
[1761229992934,0.2332,3837.1,3837.0,3.11308276]
[1761229993136,0.2332,3837.1,3837.0,3.24348276]
[1761229993336,0.1631,3837.7,3837.4,2.6059206]
[1761229993528,0.1631,3837.7,3837.6,2.60579528]
[1761229993837,0.2935,3837.7,3837.6,2.60579528]
[1761229994139,0.2627,3837.7,3836.9,0.50688]
[1761229994344,0.1631,3837.7,3837.6,2.60579528]
[1761229994530,0.1631,3837.7,3835.6,2.60711255]
[1761229994704,0.0996,3837.6,3837.1,2.60612689]
[1761229994909,0.0996,3837.6,3837.2,2.60606162]
[1761229995111,0.0996,3837.6,3837.3,2.60599433]
[1761229995336,0.0996,3837.6,3837.0,2.60614812]
[1761229995514,0.0996,3837.6,3836.7,2.60634147]
[1761229995718,0.0996,3837.6,3837.3,2.60597119]
[1761229996033,0.0996,3837.6,3837.1,2.60612916]
[1761229996337,0.0996,3837.6,3836.7,2.60640489]
[1761229996506,0.1631,3837.7,3836.4,2.60661036]
[1761229996706,0.1631,3837.7,3837.1,2.60612281]
[1761229996912,0.2627,3837.7,3837.1,2.60612281]
[1761229997119,0.1631,3837.7,3836.9,2.60627068]
[1761229997309,0.0996,3837.6,3836.2,0.2267]
[1761229997508,0.0996,3837.6,3836.5,2.6065389]
[1761229997509,1.5552,3837.4,3836.5,2.6065389]
[1761229997837,1.5552,3837.4,3836.4,2.60660278]
[1761229998044,0.0996,3837.3,3836.7,2.60640608]
[1761229998243,0.0996,3837.3,3835.6,3.422]
[1761229998244,0.0996,3837.3,3834.9,0.2267]
[1761229998420,1.5552,3836.8,3834.9,0.2267]
[1761229998619,0.26417064,3837.2,3834.9,0.2267]
[1761229998620,1.5552,3837.0,3835.7,2.6070725]
[1761229998806,1.5552,3836.8,3835.5,2.60719718]
[1761229999146,1.5552,3836.8,3835.5,2.60722144]
[1761229999147,0.81752287,3836.7,3835.5,2.60722144]
[1761229999442,1.5552,3836.6,3835.2,2.60738302]
[1761229999746,0.099,3836.6,3835.3,2.60730702]
[1761229999947,0.69301407,3837.3,3834.9,2.83428534]
[1761229999948,0.099,3836.5,3834.9,2.83428534]
[1761230000148,1.597,3836.4,3835.9,2.60689882]
[1761230000454,1.597,3836.4,3836.0,2.60686887]
[1761230000950,1.597,3836.4,3835.8,2.60695707]
[1761230001120,0.099,3836.3,3835.6,2.6070893]
[1761230001515,0.1654,3835.7,3835.5,2.60716979]
[1761230001715,0.1654,3836.2,3835.6,2.60715403]
[1761230001941,0.1654,3836.2,3835.2,2.60742338]
[1761230002142,0.2651,3836.2,3834.9,0.2267]
[1761230002344,0.1654,3836.2,3835.2,2.60737079]
[1761230002511,0.1654,3836.2,3834.1,1.5572]
[1761230002512,0.0997,3836.1,3834.5,0.4726]
[1761230003012,0.0997,3836.1,3835.0,2.60752328]
[1761230003243,0.0997,3836.1,3835.1,2.60749352]
[1761230003753,0.0997,3836.1,3834.7,2.60770221]
[1761230004038,0.0997,3836.1,3834.5,0.4726]
[1761230004039,0.1304,3834.7,3834.5,0.4726]
[1761230004346,0.1304,3834.7,3834.6,2.60778969]
[1761230004741,1.65,3835.3,3835.1,2.60745317]
[1761230005039,0.1304,3835.3,3835.2,2.60742594]
[1761230005745,0.1304,3835.3,3835.2,3.06952594]
[1761230006518,0.1304,3835.3,3835.1,2.84337035]
[1761230006719,0.1304,3835.3,3835.1,2.60747035]
[1761230006920,0.0997,3835.2,3834.9,2.6075855]
[1761230007120,0.1304,3835.0,3834.9,2.6075855]
[1761230007520,0.1304,3835.0,3834.1,0.002]
[1761230007521,0.0997,3835.6,3834.5,2.60786181]
[1761230007721,0.0997,3835.5,3834.1,0.002]
[1761230008045,1.5552,3835.4,3834.1,2.61011946]
[1761230008342,0.0997,3835.5,3834.3,2.60798446]
[1761230008512,1.5552,3835.6,3834.7,2.60770926]
[1761230008708,3.422,3835.5,3834.2,0.70618105]
[1761230008909,3.422,3835.5,3834.8,2.6076928]
[1761230009125,3.5217,3835.5,3834.7,2.60774751]
[1761230009320,0.0997,3835.4,3834.2,0.2359]
[1761230009526,3.422,3835.5,3834.3,2.60803797]
[1761230009745,3.422,3835.5,3834.4,2.60796995]
[1761230010046,3.422,3835.5,3835.1,2.60745128]
[1761230010258,3.422,3835.5,3835.0,2.6075493]
[1761230010549,3.4212,3835.5,3835.0,2.60754669]
[1761230010746,3.4212,3835.5,3835.1,2.60747805]
[1761230011046,3.4212,3835.5,3835.2,2.60736354]
[1761230011212,0.1654,3836.2,3834.5,0.4536]
[1761230011417,1.432,3836.1,3834.6,2.60782609]
[1761230011633,1.432,3836.1,3834.9,0.50688]
[1761230011832,1.432,3836.1,3835.5,2.60715535]
[1761230012232,1.432,3836.1,3835.6,2.60714153]
[1761230012464,1.432,3836.1,3835.1,2.82346967]
[1761230012773,0.0997,3836.0,3834.5,3.78]
[1761230012974,0.0997,3836.0,3834.2,0.6895]
[1761230013154,0.0997,3836.0,3834.3,2.63411834]
[1761230013355,0.0997,3836.0,3834.4,2.60796995]
[1761230013557,0.1654,3836.2,3834.4,0.4536]
[1761230013756,2.458,3836.1,3834.8,0.50688]
[1761230013957,2.458,3836.1,3835.4,2.60726203]
[1761230014161,2.458,3836.1,3835.6,2.60709083]
[1761230014474,2.5577,3836.1,3835.2,0.216]
[1761230014673,2.5577,3836.1,3834.1,0.4556]
[1761230014874,2.5577,3836.1,3835.4,2.60727829]
[1761230015074,1.6549,3836.0,3834.3,0.4536]
[1761230015245,1.6549,3836.0,3834.9,2.60762581]
[1761230015563,1.6549,3836.0,3835.2,2.6073789]
[1761230015965,0.0997,3835.9,3834.6,2.60783393]
[1761230016158,0.0997,3835.9,3834.9,2.60762695]
[1761230016466,0.0997,3835.9,3835.0,2.60755721]
[1761230017065,1.5552,3836.0,3835.3,2.60730489]
[1761230017391,2.458,3836.1,3835.4,2.60723162]
[1761230017555,0.1304,3835.5,3835.1,0.216]
[1761230017871,0.1304,3835.3,3835.1,0.216]
[1761230018070,0.1304,3835.3,3835.1,2.82343707]
[1761230018271,0.1304,3835.3,3835.1,3.27703707]
[1761230018483,0.1304,3835.3,3835.2,2.60742594]
[1761230018793,0.1304,3835.3,3835.1,2.8234755]
[1761230018994,0.1304,3835.3,3835.2,2.60742594]
[1761230019196,0.1304,3835.3,3835.2,3.06102594]
[1761230020058,0.1304,3835.3,3835.2,2.60742594]
[1761230020259,3.421,3835.7,3835.4,2.60725976]
[1761230020454,3.421,3835.7,3835.2,2.60742594]
[1761230020455,0.1304,3835.5,3835.3,2.60731412]
[1761230020699,0.1304,3835.5,3835.4,2.60728998]
[1761230021066,0.1304,3835.5,3835.0,2.60755697]
[1761230021286,0.1304,3835.3,3835.1,2.60749393]
[1761230021596,0.1304,3835.1,3834.5,0.63728]
[1761230021783,0.1304,3835.1,3835.0,2.60756192]
[1761230022174,3.421,3835.7,3835.3,2.60734621]
[1761230022353,0.1654,3836.2,3835.2,2.82342594]
[1761230022354,0.1304,3835.3,3835.2,2.82342594]
[1761230022559,0.001,3836.8,3836.0,2.60688199]
[1761230022838,0.1304,3836.0,3835.5,0.1304]
[1761230023007,0.001,3836.8,3836.3,2.6066783]
[1761230023209,0.001,3836.8,3836.3,3.5671583]
[1761230023210,0.1304,3836.7,3836.3,3.5671583]
[1761230023499,0.001,3836.8,3836.3,5.2527583]
[1761230023698,0.001,3836.8,3836.7,4.66848654]
[1761230023899,0.001,3836.8,3836.7,5.25248654]
[1761230027513,0.001,3836.8,3836.7,2.60640654]
[1761230027688,0.001,3836.8,3836.7,3.06000654]
[1761230028011,0.001,3836.8,3836.7,3.56688654]
[1761230032896,0.001,3836.8,3836.7,3.11328654]
[1761230033100,0.001,3836.8,3836.7,2.60640654]
[1761230034142,0.001,3836.8,3836.7,0.50688]
[1761230034306,0.001,3836.8,3835.8,0.4536]
[1761230034628,0.001,3836.8,3836.5,2.60649697]
[1761230034929,0.0002,3836.8,3836.0,2.60688216]
[1761230035129,0.0999,3836.8,3836.7,2.60640654]
[1761230035332,0.0002,3836.8,3836.7,2.60640654]
[1761230036013,0.0002,3836.8,3836.7,3.11328654]
[1761230037422,0.0002,3836.8,3836.7,5.12208654]
[1761230037623,0.0002,3836.8,3836.7,5.25248654]
[1761230038125,0.0002,3836.8,3836.7,3.56688654]
[1761230038300,0.0002,3836.8,3836.7,3.5929506]
[1761230038645,0.0002,3836.8,3836.7,3.56688654]
[1761230040242,0.1009,3838.8,3838.3,2.60526939]
[1761230040443,0.134,3838.7,3838.4,0.50688]
[1761230040646,0.1648,3839.1,3838.4,0.50688]
[1761230040801,0.1635,3841.0,3839.1,0.50688]
[1761230040802,0.1641,3839.3,3839.1,0.50688]
[1761230041000,0.1016,3839.2,3839.1,0.50688]
[1761230041216,0.1641,3839.3,3839.1,2.60477716]
[1761230041418,0.92859283,3840.8,3839.1,2.60477716]
[1761230041419,0.1022,3840.5,3840.2,2.60399834]
[1761230041649,0.1022,3840.5,3839.2,0.2201]
[1761230041650,0.1022,3840.5,3839.5,3.11138216]
[1761230041850,0.1022,3840.5,3839.1,2.6047231]
[1761230042157,0.1022,3840.5,3838.6,0.50688]
[1761230042362,0.55338392,3841.1,3839.3,0.50688]
[1761230042363,0.1028,3840.4,3839.3,0.50688]
[1761230042657,0.1028,3840.4,3839.4,0.50688]
[1761230042865,0.1028,3840.4,3839.7,2.60436922]
[1761230043169,0.1028,3840.4,3839.8,3.11117945]
[1761230043317,0.1028,3840.4,3840.1,0.50688]
[1761230043514,0.1028,3840.4,3840.0,0.50688]
[1761230043756,0.1028,3840.9,3840.2,2.60397199]
[1761230043919,0.1028,3840.9,3840.3,0.50688]
[1761230044123,0.1028,3840.9,3840.4,0.50688]
[1761230044454,0.1028,3840.9,3840.3,0.50688]
[1761230044616,1.5552,3841.2,3840.3,0.50688]
[1761230044818,1.5552,3841.2,3839.5,0.50688]
[1761230044819,1.5552,3840.8,3839.5,0.50688]
[1761230045018,0.1028,3840.9,3839.3,3.11149309]
[1761230045214,3.5188,3840.9,3839.5,0.50688]
[1761230045452,1.5552,3840.8,3839.9,0.50688]